Cogmind - Beta 16 @@@ ROGUE MODE // 2025.11.14 @ 13:20:33 Player: welikiq Result: Destroyed by S-10 Pest with Light Assault Rifle Performance ------------- Evolutions (0) 0 Regions Visited (2) 400 Robots Destroyed (27) 135 Value Destroyed (552) 552 Prototype IDs (2) 40 Alien Tech Used (0) 0 Bonus (0) 0 TOTAL SCORE: 1127 Bonus ------- None Cogmind --------- Core Integrity 0/250 Matter 298/300 Energy 94/100 System Corruption 0% Temperature Cool (55) Movement Walking (260) Ox2 Location -10/Mines Parts ------- > --- POWER (1) -------- (None) > --- PROPULSION (2) --- Aluminum Leg Aluminum Leg > --- UTILITY (2) ------ High-capacity Storage Unit Hacking Suite > --- WEAPON (2) ------- Medium Laser Light Assault Rifle > --- INVENTORY (20) --- Ion Engine Ion Engine Light Ion Engine Light Treads Light Treads Light Treads Aluminum Leg Aluminum Leg Aluminum Leg Heat Sink High-capacity Storage Unit Signal Interpreter Hacking Suite Hacking Suite Light Assault Rifle Grenade Launcher Grenade Launcher Mining Laser Peak State ------------ > --- POWER ------------ Ion Engine > --- PROPULSION ------- Aluminum Leg Aluminum Leg > --- UTILITY ---------- High-capacity Storage Unit Hacking Suite > --- WEAPON ----------- Assault Rifle Light Assault Rifle > --- INVENTORY -------- Ion Engine Ion Engine Light Ion Engine Light Treads Light Treads Aluminum Leg Aluminum Leg Aluminum Leg Aluminum Leg Heat Sink High-capacity Storage Unit Hacking Suite Hacking Suite Medium Laser Grenade Launcher Grenade Launcher [Rating: 11] Favorites ----------- Power Ion Engine Engine Ion Engine Propulsion Aluminum Leg Treads Light Treads Leg Aluminum Leg Utility Hacking Suite Device Improved Terrain Scanner Storage High-capacity Storage Unit Hackware Hacking Suite Weapon Light Assault Rifle Energy Gun Medium Laser Ballistic Gun Light Assault Rifle Special Weapon Mining Laser Build | -11 -10 -10 ------- Run | Yrd Mat Min Slots Evolved . | . . . Power . | . . . Propulsion . | . . . Utility . | . . . Weapon . | . . . Parts Attached 21 | 9 11 1 Power 6 | 2 4 . Engine 6 | 2 4 . Core . | . . . Reactor . | . . . Propulsion 5 | 2 3 . Treads 2 | 2 . . Leg 3 | . 3 . Wheel . | . . . Hover . | . . . Flight . | . . . Utility 4 | 2 2 . Device 1 | 1 . . Storage 2 | 1 1 . Processor . | . . . Hackware 1 | . 1 . Protection . | . . . Artifact . | . . . Weapon 6 | 3 2 1 Energy Gun 2 | 1 . 1 Energy Cannon . | . . . Ballistic Gun 3 | 2 1 . Ballistic Cannon . | . . . Launcher . | . . . Special Weapon 1 | . 1 . Impact Weapon . | . . . Slashing Weapon . | . . . Piercing Weapon . | . . . Special Melee Weapon . | . . . Unidentified Prototypes . | . . . Parts Lost 6 | . 4 2 Power 3 | . 2 1 Propulsion 1 | . 1 . Utility . | . . . Weapon 2 | . 1 1 Highest Loss Streak 2 | . 2 1 To Critical Strikes . | . . . Average Backups 12 | 1 11 17 Power 2 | . 1 3 Propulsion 4 | . 4 5 Utility 3 | . 3 5 Weapon 2 | . 2 3 Tool/Special . | . . . Unused Backups 11 | . . 11 Power . | . . . Propulsion 4 | . . 4 Utility 4 | . . 4 Weapon 3 | . . 3 Tool/Special . | . . . Average Slot Usage (%) 98 | . 98 99 Engine 13 | . 13 13 Treads 2 | . 3 . Leg 25 | . 23 28 Storage 14 | . 14 14 Hackware 13 | . 13 14 Energy Gun 4 | . . 13 Ballistic Gun 22 | . 26 14 Peak Build Rating 11 | 9 11 11 Average Rating 9 | 5 9 10 On Entrance 6 | . 9 11 Avg Prop Armor Cover (%) . | . . . Naked Turns . | . . . Heaviest Build 49 | 15 48 49 Greatest Support 40 | 40 40 20 Greatest Overweight (x) 2 | . 2 2 Average Overweight (x) 1 | . 1 2 Largest Inventory Capacity 20 | 8 20 20 Average Capacity 17 | 7 16 20 Most Carried 18 | 2 17 18 Average Carried 12 | 1 11 17 Final Capacity 20 | 8 20 20 Final Carried 18 | 2 17 18 Class Distribution -------------------- 100% | Mutant Dominant Class ---------------- Mutant | -10/Materials Mutant | -10/Mines Resources | -11 -10 -10 ----------- Run | Yrd Mat Min Matter Collected 852 | 253 522 77 Remotely . | . . . Salvage Created 861 | 43 719 99 Parts 52 | 6 41 5 Haulers Intercepted 1 | . 1 . Recyclers Shooed 1 | . 1 . Parts Field Recycled . | . . . Retrieved Matter . | . . . Parts Self-Destructed . | . . . Prevented . | . . . Parts Restored . | . . . Kills | -11 -10 -10 ------- Run | Yrd Mat Min Combat Hostiles Destroyed 17 | . 11 6 Guns 17 | . 11 6 Classes Destroyed 8 | 2 5 1 Worker 3 | 1 2 . Tunneler 1 | 1 . . Hauler 1 | . 1 . Recycler 1 | . 1 . Operator 3 | . 3 . Watcher 1 | . 1 . Swarmer 6 | . . 6 Grunt 11 | . 11 . Best Kill Streak 3 | 2 3 3 Combat Bots Only 3 | . 2 3 Max Kills in Single Turn 2 | 1 1 2 Gunslinging 1 | . . 1 Exploded . | . . . Melee . | . . . Uniques/NPCs Destroyed . | . . . Combat | -11 -10 -10 -------- Run | Yrd Mat Min Hostile Shots Fired 112 | . 59 53 Missed 24 | . 10 14 Hits 88 | . 49 39 Projectile 88 | . 49 39 Critical Strikes 2 | . 1 1 Damage Taken 978 | . 673 305 Core 253 | . 177 76 Absorbed by Shields . | . . . Core Remaining (%) 100 | 100 . . Volleys Fired 112 | 4 87 21 Largest 2 | 2 2 2 Hottest 100 | 70 100 70 Shots Fired 218 | 8 171 39 Gun 216 | 8 169 39 Cannon . | . . . Launcher . | . . . Special 2 | . 2 . Kinetic 190 | 4 168 18 Thermal 28 | 4 3 21 Explosive . | . . . Electromagnetic . | . . . Robot Hit Streak 10 | 2 10 3 Robot Miss Streak 6 | 4 3 6 Penetration Max . | . . . Secondary Targets 2 | . . 2 Max Gunslinging Chain 1 | . . 1 Shots Hit Robots 122 | 3 104 15 Core Hits 46 | 2 37 7 Critical Kills . | . . . Critical Parts Destroyed 1 | . 1 . Critical Strikes 1 | . 1 . Destroy 1 | . 1 . Melee Attacks . | . . . Impact . | . . . Slashing . | . . . Piercing . | . . . Sneak Attacks . | . . . Combat Hostiles . | . . . Follow-up Attacks . | . . . Damage Inflicted 1425 | 67 1177 181 Guns 1392 | 67 1148 177 Cannons . | . . . Explosions . | . . . Melee . | . . . Ramming 33 | . 29 4 Kinetic 1231 | 41 1136 54 Thermal 161 | 26 12 123 Explosive . | . . . Electromagnetic . | . . . Impact . | . . . Slashing . | . . . Piercing . | . . . Highest Corruption . | . . . Average Corruption . | . . . Corruption Purged . | . . . Corruption Blocked . | . . . Overload Shots . | . . . Overflow Damage . | . . . Projectiles . | . . . Explosions . | . . . Melee . | . . . Knockbacks . | . . . Impact . | . . . Kinetic . | . . . Secondary . | . . . Self-Inflicted Damage . | . . . Shots . | . . . Rammed . | . . . Targets Rammed 8 | . 6 2 Kicked 8 | . 6 2 Crushed . | . . . Highest Temperature 110 | 36 40 110 Average Temperature 24 | 19 8 42 Received Heat Transfer 396 | . 396 . Siege Activations . | . . . Martial Activations . | . . . Shielding Activations . | . . . Robots Disrupted . | . . . Combat Hostiles . | . . . Robots Corrupted . | . . . Combat Hostiles . | . . . Parts Fried . | . . . Impact Corruptions . | . . . Robots Melted . | . . . Combat Hostiles . | . . . Parts Melted . | . . . Heat Transferred 444 | 74 37 333 Parts Sabotaged . | . . . Parts Stolen . | . . . Parts Stripped . | . . . Power Chain Reactions . | . . . Alert | -11 -10 -10 ------- Run | Yrd Mat Min Maximum Alert Level . | . . . Low Security (%) 100 | 100 100 100 Level 1 . | . . . Level 2 . | . . . Level 3 . | . . . Level 4 . | . . . Level 5 . | . . . High Security . | . . . Max Security . | . . . Peak Influence 62 | 10 49 62 Initial 2 | . . 2 Average 11 | . 10 14 Influence Increases 519 | 10 354 155 Destroy 0b10 Robot/C 340 | . 220 120 Destroy 0b10 Robot/NC 50 | 10 40 . Destroy Leader 64 | . 44 20 Successful Hack 5 | . 5 . Disable Machine 15 | . 15 . Lose Combat Pursuer 45 | . 30 15 Influence Decreases 504 | 10 347 147 Entered New Map 5 | . . 5 Time Decay 469 | 10 327 132 Lost Part 30 | . 20 10 Squads Dispatched 2 | . 2 . Investigation 1 | . 1 . Extermination . | . . . Reinforcement 1 | . 1 . Assault . | . . . Garrison . | . . . Intercept . | . . . Searches Triggered . | . . . Construction Impeded . | . . . Haulers Reinforced . | . . . Active Scanning Responses . | . . . Cargo Convoy Interrupts . | . . . Stealth | -11 -10 -10 --------- Run | Yrd Mat Min Distress Signals 5 | . 5 . Communications Jammed . | . . . Distress Signals . | . . . Times Spotted 37 | . 28 9 Peak Tracking Total 4 | . 4 3 Tactical Retreats 3 | . 2 1 Traps | -11 -10 -10 ------- Run | Yrd Mat Min Traps Triggered 2 | . 2 . Indirectly . | . . . Trap Hack Attempts . | . . . Triggered . | . . . Disarmed . | . . . Reprogrammed . | . . . Reused . | . . . Traps Extracted . | . . . Installed . | . . . Triggered . | . . . Machines | -11 -10 -10 ---------- Run | Yrd Mat Min Machines Disabled 2 | . 2 . Max in Single Turn 1 | . 1 . Machines Repaired . | . . . Machines Dismantled . | . . . Machines Sabotaged . | . . . Overloaded Fab Kills . | . . . Hacking | -11 -10 -10 --------- Run | Yrd Mat Min Machines Accessed 5 | . 5 . Terminals 5 | . 5 . Fabricators . | . . . Repair Stations . | . . . Recycling Units . | . . . Scanalyzers . | . . . Garrison Access . | . . . Total Hacks 17 | . 17 . Successful 7 | . 7 . Failed 10 | . 10 . Catastrophic 2 | . 2 . Database Lockouts . | . . . Manual 8 | . 8 . Terminals 17 | . 17 . Fabricators . | . . . Repair Stations . | . . . Recycling Units . | . . . Scanalyzers . | . . . Garrison Access . | . . . Terminal Hacks 7 | . 7 . Robot Analysis 4 | . 4 . Prototype ID Bank 1 | . 1 . Terminal Index 1 | . 1 . Locate Traps 1 | . 1 . Fabricator Hacks . | . . . Repair Station Hacks . | . . . Recycling Unit Hacks . | . . . Scanalyzer . | . . . Garrison Access Hacks . | . . . Unauthorized Hacks . | . . . Terminals . | . . . Fabricators . | . . . Repair Stations . | . . . Recycling Units . | . . . Scanalyzers . | . . . Garrison Access . | . . . Data Cores Recovered 2 | . 2 . Used . | . . . Hacking Detections 5 | . 5 . Full Trace Events 1 | . 1 . Feedback Events . | . . . Feedback Blocked . | . . . Robot Schematics Acquired . | . . . Robots Built . | . . . Authchips . | . . . Time . | . . . Total Robot Build Rating . | . . . Part Schematics Acquired . | . . . Parts Built . | . . . Authchips . | . . . Time . | . . . Total Part Build Rating . | . . . Part Studies Acquired . | . . . Parts Repaired . | . . . Time . | . . . Parts Recycled . | . . . Recycled Matter . | . . . Retrieved Matter . | . . . Retrieved Components . | . . . Parts Scanalyzed . | . . . Part Schematics Acquired . | . . . Parts Damaged . | . . . Bothacking | -11 -10 -10 ------------ Run | Yrd Mat Min Used RIF Installer . | . . . Robots Hacked . | . . . Non-combat . | . . . Combat . | . . . Robot Hacks Applied . | . . . Relay Couplers Released . | . . . Fabnet Peak Effective % . | . . . Robots Rewired . | . . . Allies Hacked . | . . . Hacks Repelled . | . . . Allies | -11 -10 -10 -------- Run | Yrd Mat Min Total Allies . | . . . Largest Group . | . . . Highest-Rated Group . | . . . Highest-Rated Ally . | . . . Total Orders . | . . . Ally Attacks . | . . . Total Damage . | . . . Kills . | . . . Allies Corrupted . | . . . Allies Melted . | . . . Intel | -11 -10 -10 ------- Run | Yrd Mat Min Active Infowar (turns) 18 | 8 10 . Terrain 18 | 8 10 . Robot Analysis Total 4 | . 4 . Derelict Logs Recovered . | . . . Drone Launches . | . . . Drone Recoveries . | . . . Exploration | -11 -10 -10 ------------- Run | Yrd Mat Min Turns Passed 2171 | 130 1469 572 Spaces Moved 777 | 72 511 194 Core 9 | 9 . . Treads 161 | 63 98 . Legs 607 | . 413 194 Wheels . | . . . Hover . | . . . Flight . | . . . Fastest Speed 50 | 50 120 260 Average Speed 224 | 146 221 260 Slowest Speed 260 | 160 260 260 Overloaded Moves . | . . . Propulsion Burnouts . | . . . Robots Hopped . | . . . Potential Cave-ins . | . . . Cave-ins Triggered . | . . . Exploration Rate (%) 37 | 4 61 48 Regions Visited 2 Branch Regions 1 Pre-discovered Areas . | . . . Known Exits Taken . | . . . Unknown Exits Taken 2 | 1 1 . Scrap Searched 1 | . . 1 Spaces Dug . | . . . Terrain Destroyed . | . . . Melee . | . . . Projectile . | . . . AOE . | . . . Terrain Rammed . | . . . Walls Destroyed . | . . . Machines Disabled . | . . . Actions | -11 -10 -10 --------- Run | Yrd Mat Min Total 984 | 84 677 223 Wait 40 | . 39 1 Move 775 | 71 510 194 Hop . | . . . Pick Up 17 | . 15 2 Fast Attach 13 | 7 6 . Attach 5 | . 4 1 Detach . | . . . Swap 12 | 2 8 2 Drop 2 | . 2 . Fire 112 | 4 87 21 Melee . | . . . Ram . | . . . Kick 8 | . 6 2 Crush . | . . . Escape Stasis . | . . . Rewire . | . . . Trap . | . . . Miscellaneous . | . . . Route ------- -11/Scrapyard -10/Materials (discovered 2 exits: [*Mat] / [*Min]) -10/Mines (discovered 1 exit: [*Mat]) History --------- Turn | Location | Event 45 | -11/Scrapyard | Discovered new exit (range 15) 131 | -11/Scrapyard | Entered Materials 313 | -10/Materials | Build established: Mutant 683 | -10/Materials | Discovered new exit (range 12) 923 | -10/Materials | Discovered new exit (range 8) 1153 | -10/Materials | Core integrity fell below 50% 1600 | -10/Materials | Entered Mines 1689 | -10/Mines | Core integrity fell below 20% 2056 | -10/Mines | Discovered new exit (range 7) 2172 | -10/Mines | Destroyed by S-10 Pest with Light Assault Rifle Last Messages --------------- 01689_ S-10 Pest destroyed. 01689_ Switching to secondary target: S-10 Pest. 01689_ S-10 Pest destroyed. 01692_ Acquired 15 matter. 01697_ Acquired Lgt. Assault Rifle. 01766_ K-01 Serf collects debris. 01768_ Kicked U-05 Engineer. 01770_ K-01 Serf collects debris. 01789_ U-05 Engineer lays Concrete. 01792_ U-05 Engineer builds a Wall. 01852_ K-01 Serf cleans the Laser Drill. 01890_ Kicked R-06 Scavenger. 01894_ Acquired 1 matter. 01998_ S-10 Pest destroyed. 02003_ Switching to secondary target: S-10 Pest. 02009_ S-10 Pest destroyed. 02017_ Acquired 7 matter. 02020_ R-06 Scavenger collects Flight Unit. 02056_ EXIT=FOUND 02166_ Ion Engine destroyed. Map ----- +----------------------------------------------------+ | ?????????????????????????????????? | | ?????????????????????????????????? | | ?????????????????????????????????? | | ?????????????????????????????????? | | ?????????????????????????????????? | | ?????????????????????????????????? | | ?????????????????????????????????? | | ?????????????????????????????????? | | ??????????????###????????????????? | | ?????????????# ##??????? ??????? | | ????????#???? ???### ?????? | | ???????? ##?? ???? #????? | | ???????? ?? ???? #???? | | ???????? ?? ?????# ???? | | ???????? ?? ??????# #??? | | ???????? ?? ??????# ??? | | ???????? ??# ???#### ??? | | ???????? ??# ????# ##? | | ????????#s#??# ??????? ## | | ????????# #??# #??????????# | | ????????# #??# #?????????## | | ????????# #??# #????????## | | ????????# #??# #????????# | | ????????# #??# #????????# """ # | | ????????# #### #???????## """ ## | | ????????#@ s #??????## """ #? | | ????????###### #?????## #? | | ?????????????# #### ## % #? | | ?????????????# ## %%#? | | ?????????????# ## ##? | | ?????????????# ######### ##?? | | ????????????## ##??????### ###??? | | ???????????## ##???????# #????? | | ??????????## #???##### #????? | | ?????????## #???# #????? | | ????????## ##???# #????? | | ??????### ##????# #####????? | | ?????## ##?????# #????????? | | ?????# ##?###### #????????? | | ?????# #### ## #????????? | | ?????## ## ##???????? | | ??????### #???????? | | ????????## ##???????? | | ????????## < ####????????? | | ????????# ##???????????? | | ????????# ## #????????????? | | ????????## #### ##????????????? | | ?????????#####??####?????????????? | | ?????????????????????????????????? | | ?????????????????????????????????? | +----------------------------------------------------+ Best States ------------- Heat Dissipation 25 Energy Generation 10 Energy Capacity 250 Matter Stores 300 Matter Capacity 300 Sight Range 16 Terrain Scan Range 16 Terrain Scan Density 10 Evasion (%) 55 Recoil Reduction 2 Offensive Hacking 10 Item Schematics ----------------- None Robot Schematics ------------------ None Fabricated ------------ Nothing Repaired ---------- Nothing Studied --------- None Alien Tech Used ----------------- None Achievements -------------- None Challenges ------------ None Game ------ Seed GammaTerrorAutopenetrator Manual? 0 Play Time 00:12:10 Cumulative 43.3 hours Start 2025.11.14 @ 13:09:25 End 2025.11.14 @ 13:20:33 Sessions 1 Manual Loads 0 Difficulty Rogue Special Mode None Game No. 61 Rogue 61 Adventurer 0 Explorer 0 Win Type - Total 0 Types 0/0/0/0/0/0/0/0/0/0 Lore% 9 Gallery% 21 Achievement% 17 Wizard Run 0 Options --------- Layout 0 ASCII 0 Keyboard 0 Movement Mouse Keybinds 0 Fullscreen 2 Font 24/Smallcaps Map View 76x50 Zoom Use 27% Tactical HUD 1 Map Filters NONE Filters NONE Steam 1 RUN: 5e8a8a1b-3801-4bf8-8b57-7762ffc8a71a